Workbook

Sheet Control (hidden)
D4: m | E4: ft
C5: 1 | D5: =IF(C5=1,'Potential Outcome Calculator'!F5,'Potential Outcome Calculator'!F5*0.3048) -> 2 | E5: =IF(C5=2,'Potential Outcome Calculator'!F5,'Potential Outcome Calculator'!F5*3.280839895) -> 6.56167979
D6: Kgs | E6: Lbs
C7: 1 | D7: =IF(C7=1,'Potential Outcome Calculator'!F7,'Potential Outcome Calculator'!F7*0.45359237) -> 2 | E7: =IF(C7=2,'Potential Outcome Calculator'!F7,'Potential Outcome Calculator'!F7*2.204622622) -> 4.409245244
C10: m | D10: kg
C11: ft | D11: lb

Sheet data (hidden)
C1: limited data
C2: 4.400674331 | D2: 6.456944328 | E2: 10.29724014
C3: -1.0015 | D3: -0.9996 | E3: -0.9969
C5: full data
C6: 4.563304495 | D6: 6.612631957 | E6: 10.55089825
C7: -0.8489 | D7: -0.8472 | E7: -0.8476
C9: =IF(Control!D7<1,data!C2,data!C6) -> 4.563304495 | D9: =IF(Control!D7<1,data!D2,data!D6) -> 6.612631957 | E9: =IF(Control!D7<1,data!E2,data!E6) -> 10.55089825
C10: =IF(Control!D7<1,data!C3,data!C7) -> -0.8489 | D10: =IF(Control!D7<1,data!D3,data!D7) -> -0.8472 | E10: =IF(Control!D7<1,data!E3,data!E7) -> -0.8476
B14: Mass | C14: Slight | D14: Minor | E14: Major | F14: Fatality | I14: Notes
A15: 0.1 | B15: =IF(Control!D$7<1,A15,A15*10) -> 1 | C15: =C$9*$B15^(C$10) -> 4.563304495 | D15: =D$9*$B15^(D$10) -> 6.612631957 | E15: 10.55089825 | F15: =E15 -> 10.55089825 | H15: 1 | I15: Dropped object classification is defined by mass of object and height from which it falls
A16: =A15+0.01 -> 0.11 | B16: =IF(Control!D$7<1,A16,A16*10) -> 1.1 | C16: 4.208634379 | D16: 6.099671811 | E16: 9.732064866 | F16: 9.732064866 | H16: 2 | I16: The threshold values between classifications are defined by best-fit curves to the "probit" data
A17: =A16+0.01 -> 0.12 | B17: =IF(Control!D$7<1,A17,A17*10) -> 1.2 | C17: 3.908971366 | D17: 5.666201307 | E17: 9.040145298 | F17: 9.040145298 | H17: 3 | I17: The best fit curves are presented as "limited data" for mass in the range 0.1 to 1.0 kg
A18: 0.13 | B18: =IF(Control!D$7<1,A18,A18*10) -> 1.3 | C18: 3.652186418 | D18: 5.294702264 | E18: 8.447166401 | F18: 8.447166401 | H18: 4 | I18: The best fit curves are presented as "full data" for mass in the range 1.0 to 10.0 kg
A19: 0.14 | B19: =IF(Control!D$7<1,A19,A19*10) -> 1.4 | C19: 3.429504361 | D19: 4.972498717 | E19: 7.9328878 | F19: 7.9328878 | H19: 5 | I19: The best fit curves are presented in the format height= A*mass^B
A20: 0.15 | B20: =IF(Control!D$7<1,A20,A20*10) -> 1.5 | C20: 3.234413783 | D20: 4.690183526 | E20: 7.482289088 | F20: 7.482289088 | H20: 6 | I20: The probit data is as follows
A21: 0.16 | B21: =IF(Control!D$7<1,A21,A21*10) -> 1.6 | C21: 3.061977504 | D21: 4.440622982 | E21: 7.083980183 | F21: 7.083980183 | I21: Pr =-29.15+2,1*ln(m*v^5.115) | M21: 0.001<m<0.1 | O21: Pr = | P21: 7 | Q21: High | R21: High (99% fatality)
A22: 0.17 | B22: =IF(Control!D$7<1,A22,A22*10) -> 1.7 | C22: 2.908381407 | D22: 4.218305463 | E22: 6.729161153 | F22: 6.729161153 | I22: Pr =-17.56+5,3*ln(0.5*m^2) | M22: 0.1<m<4.5 | O22: Pr = | P22: 4.2 | Q22: Medium | R22: Medium (21% fatality)
A23: 0.18 | B23: =IF(Control!D$7<1,A23,A23*10) -> 1.8 | C23: 2.770630554 | D23: 4.01890264 | E23: 6.410921507 | F23: 6.410921507 | I23: Pr=-13.19+10.54*ln(v) | M23: m > 4.5 | O23: Pr = | P23: 2.5 | Q23: Safe | R23: Safe (<0.1% fatality)
A24: 0.19 | B24: =IF(Control!D$7<1,A24,A24*10) -> 1.9 | C24: 2.646339243 | D24: 3.83896631 | E24: 6.123756067 | F24: 6.123756067 | I24: where m is mass in kg and v is velocity in metres/second derived from assuming potential energy of mass*gravitational constant* height (mgh)
A25: 0.2 | B25: =IF(Control!D$7<1,A25,A25*10) -> 2 | C25: 2.533582704 | D25: 3.675714227 | E25: 5.863222976 | F25: 5.863222976 | I25: is fully converted (without losses) to kinetic energy one-half*mass*velocity squared (0.5*m*v^2) so that v^2 = 2*g*h
A26: 0.21 | B26: =IF(Control!D$7<1,A26,A26*10) -> 2.1 | C26: 2.430790272 | D26: 3.526875792 | E26: 5.625697302 | F26: 5.625697302 | H26: 7 | I26: The probit function indicates the the relationship between exposure and the probability that the consequence occurs
A27: 0.22 | B27: =IF(Control!D$7<1,A27,A27*10) -> 2.2 | C27: 2.336667053 | D27: 3.390578911 | E27: 5.408190371 | F27: 5.408190371 | H27: 8 | I27: The probit data category of High has been used to define the fatal/DAWFC threshold
A28: 0.23 | B28: =IF(Control!D$7<1,A28,A28*10) -> 2.3 | C28: 2.25013559 | D28: 3.26526572 | E28: 5.208215205 | F28: 5.208215205 | H28: 9 | I28: The probit data category of Medium has been used to define the DAWFC/Recordable threshold
A29: 0.24 | B29: =IF(Control!D$7<1,A29,A29*10) -> 2.4 | C29: 2.170291781 | D29: 3.149628906 | E29: 5.023684842 | F29: 5.023684842 | H29: 10 | I29: The probit data category of Safe has been used to define the Recordable/First Aid threshold
A30: 0.25 | B30: =IF(Control!D$7<1,A30,A30*10) -> 2.5 | C30: 2.096371156 | D30: 3.042562976 | E30: 4.852834534 | F30: 4.852834534 | H30: 11 | I30: DAWFC = Days Away From Work Case
A31: 0.26 | B31: =IF(Control!D$7<1,A31,A31*10) -> 2.6 | C31: 2.02772275 | D31: =D$9*$B31^(D$10) -> 2.943126514 | E31: 4.694161478 | F31: 4.694161478 | H31: 12 | I31: The best fit curves are fitted to data that does not exactly achieve the 7.00, 4.20 and 2.50 targets,
A32: 0.27 | B32: =IF(Control!D$7<1,A32,A32*10) -> 2.7 | C32: 1.963788667 | D32: 2.850512636 | E32: 4.546377653 | F32: 4.546377653 | I32: but is reproduced for this chart because it matches the DROPS calculator card.
A33: 0.28 | B33: =IF(Control!D$7<1,A33,A33*10) -> 2.8 | C33: 1.904087913 | D33: 2.76402564 | E33: 4.40837253 | F33: 4.40837253 | H33: 13 | I33: For future revisions, the 7.00, 4.20 and 2.50 target values may be accurately achieved by use of the "goal seek" function
A34: 0.29 | B34: =IF(Control!D$7<1,A34,A34*10) -> 2.9 | C34: 1.8482035 | D34: 2.683062367 | E34: 4.279183318 | F34: 4.279183318 | H34: 14 | I34: The best fit curves are fitted to data using mass values of 0.1 kg and greater and so are focussed on skull fracture
A35: 0.3 | B35: =IF(Control!D$7<1,A35,A35*10) -> 3 | C35: 1.795772083 | D35: 2.607097208 | E35: 4.157971032 | F35: 4.157971032
A36: 0.31 | B36: =IF(Control!D$7<1,A36,A36*10) -> 3.1 | C36: 1.746475538 | D36: 2.535669954 | E36: 4.044001083 | F36: 4.044001083
A37: 0.32 | B37: =IF(Control!D$7<1,A37,A37*10) -> 3.2 | C37: 1.700034098 | D37: 2.468375857 | E37: 3.936627421 | F37: 3.936627421
A38: 0.33 | B38: =IF(Control!D$7<1,A38,A38*10) -> 3.3 | C38: 1.656200706 | D38: 2.404857469 | E38: 3.835279503 | F38: 3.835279503
A39: 0.34 | B39: =IF(Control!D$7<1,A39,A39*10) -> 3.4 | C39: 1.614756332 | D39: 2.344797882 | E39: 3.739451499 | F39: 3.739451499
A40: 0.35 | B40: =IF(Control!D$7<1,A40,A40*10) -> 3.5 | C40: 1.575506089 | D40: 2.287915099 | E40: 3.648693311 | F40: 3.648693311
A41: 0.36 | B41: =IF(Control!D$7<1,A41,A41*10) -> 3.6 | C41: 1.538275971 | D41: 2.233957327 | E41: 3.562603049 | F41: 3.562603049
A42: 0.37 | B42: =IF(Control!D$7<1,A42,A42*10) -> 3.7 | C42: 1.502910108 | D42: 2.182699007 | E42: 3.480820705 | F42: 3.480820705
A43: 0.38 | B43: =IF(Control!D$7<1,A43,A43*10) -> 3.8 | C43: 1.469268452 | D43: 2.133937466 | E43: 3.403022796 | F43: 3.403022796
A44: 0.39 | B44: =IF(Control!D$7<1,A44,A44*10) -> 3.9 | C44: 1.437224805 | D44: 2.087490062 | E44: 3.32891782 | F44: 3.32891782
A45: 0.4 | B45: =IF(Control!D$7<1,A45,A45*10) -> 4 | C45: 1.406665131 | D45: 2.043191753 | E45: 3.258242365 | F45: 3.258242365
A46: 0.41 | B46: =IF(Control!D$7<1,A46,A46*10) -> 4.1 | C46: 1.377486125 | D46: 2.000893015 | E46: 3.190757788 | F46: 3.190757788
A47: 0.42 | B47: =IF(Control!D$7<1,A47,A47*10) -> 4.2 | C47: 1.349593961 | D47: 1.960458046 | E47: 3.126247348 | F47: 3.126247348
A48: 0.43 | B48: =IF(Control!D$7<1,A48,A48*10) -> 4.3 | C48: =C$9*$B48^(C$10) -> 1.32290323 | D48: 1.921763214 | E48: 3.064513733 | F48: 3.064513733
A49: 0.44 | B49: =IF(Control!D$7<1,A49,A49*10) -> 4.4 | C49: 1.297336007 | D49: 1.884695719 | E49: 3.005376916 | F49: 3.005376916
A50: 0.45 | B50: =IF(Control!D$7<1,A50,A50*10) -> 4.5 | C50: 1.272821041 | D50: 1.849152419 | E50: 2.948672288 | F50: 2.948672288
A51: 0.46 | B51: =IF(Control!D$7<1,A51,A51*10) -> 4.6 | C51: 1.249293055 | D51: 1.815038813 | E51: 2.894249032 | F51: 2.894249032
A52: 0.47 | B52: =IF(Control!D$7<1,A52,A52*10) -> 4.7 | C52: 1.226692125 | D52: 1.782268151 | E52: 2.8419687 | F52: 2.8419687
A53: 0.48 | B53: =IF(Control!D$7<1,A53,A53*10) -> 4.8 | C53: 1.204963141 | D53: 1.750760644 | E53: 2.791703957 | F53: 2.791703957
A54: 0.49 | B54: =IF(Control!D$7<1,A54,A54*10) -> 4.9 | C54: 1.184055328 | D54: 1.720442778 | E54: 2.743337483 | F54: 2.743337483
A55: 0.5 | B55: =IF(Control!D$7<1,A55,A55*10) -> 5 | C55: 1.163921826 | D55: 1.691246707 | E55: 2.696761002 | F55: 2.696761002
A56: 0.51 | B56: =IF(Control!D$7<1,A56,A56*10) -> 5.1 | C56: 1.144519315 | D56: 1.663109707 | E56: 2.651874417 | F56: 2.651874417
A57: 0.52 | B57: =IF(Control!D$7<1,A57,A57*10) -> 5.2 | C57: 1.125807689 | D57: 1.635973705 | E57: 2.608585049 | F57: 2.608585049
A58: 0.53 | B58: =IF(Control!D$7<1,A58,A58*10) -> 5.3 | C58: 1.107749756 | D58: 1.609784846 | E58: 2.566806958 | F58: 2.566806958
A59: 0.54 | B59: =IF(Control!D$7<1,A59,A59*10) -> 5.4 | C59: 1.090310981 | D59: 1.584493122 | E59: 2.526460334 | F59: 2.526460334
A60: 0.55 | B60: =IF(Control!D$7<1,A60,A60*10) -> 5.5 | C60: 1.073459248 | D60: 1.560052023 | E60: 2.48747096 | F60: 2.48747096
A61: 0.56 | B61: =IF(Control!D$7<1,A61,A61*10) -> 5.6 | C61: 1.05716465 | D61: 1.536418243 | E61: 2.449769725 | F61: 2.449769725
A62: 0.57 | B62: =IF(Control!D$7<1,A62,A62*10) -> 5.7 | C62: 1.041399306 | D62: 1.513551399 | E62: 2.413292189 | F62: 2.413292189
A63: 0.58 | B63: =IF(Control!D$7<1,A63,A63*10) -> 5.8 | C63: 1.026137183 | D63: 1.491413794 | E63: 2.377978192 | F63: 2.377978192
A64: 0.59 | B64: =IF(Control!D$7<1,A64,A64*10) -> 5.9 | C64: 1.011353953 | D64: 1.469970189 | E64: 2.343771504 | F64: 2.343771504
A65: 0.6 | B65: =IF(Control!D$7<1,A65,A65*10) -> 6 | C65: 0.9970268463 | D65: 1.44918761 | E65: 2.310619505 | F65: 2.310619505
A66: 0.61 | B66: =IF(Control!D$7<1,A66,A66*10) -> 6.1 | C66: =C$9*$B66^(C$10) -> 0.9831345348 | D66: 1.429035163 | E66: 2.278472896 | F66: 2.278472896
A67: 0.62 | B67: =IF(Control!D$7<1,A67,A67*10) -> 6.2 | C67: 0.9696570149 | D67: 1.409483877 | E67: 2.247285444 | F67: 2.247285444
A68: 0.63 | B68: =IF(Control!D$7<1,A68,A68*10) -> 6.3 | C68: 0.9565755066 | D68: 1.390506547 | E68: 2.217013742 | F68: 2.217013742
A69: 0.64 | B69: =IF(Control!D$7<1,A69,A69*10) -> 6.4 | C69: 0.9438723609 | D69: 1.372077611 | E69: 2.187616997 | F69: 2.187616997
A70: 0.65 | B70: =IF(Control!D$7<1,A70,A70*10) -> 6.5 | C70: 0.9315309748 | D70: 1.354173017 | E70: 2.15905683 | F70: 2.15905683
A71: 0.66 | B71: =IF(Control!D$7<1,A71,A71*10) -> 6.6 | C71: 0.919535715 | D71: 1.33677012 | E71: 2.131297105 | F71: 2.131297105
A72: 0.67 | B72: =IF(Control!D$7<1,A72,A72*10) -> 6.7 | C72: 0.9078718469 | D72: 1.319847575 | E72: 2.104303764 | F72: 2.104303764
A73: 0.68 | B73: =IF(Control!D$7<1,A73,A73*10) -> 6.8 | C73: 0.8965254713 | D73: 1.303385246 | E73: 2.078044677 | F73: 2.078044677
A74: 0.69 | B74: =IF(Control!D$7<1,A74,A74*10) -> 6.9 | C74: 0.8854834648 | D74: 1.287364123 | E74: 2.052489507 | F74: 2.052489507
A75: 0.7 | B75: =IF(Control!D$7<1,A75,A75*10) -> 7 | C75: 0.8747334265 | D75: 1.27176624 | E75: 2.027609588 | F75: 2.027609588
A76: 0.71 | B76: =IF(Control!D$7<1,A76,A76*10) -> 7.1 | C76: 0.8642636285 | D76: 1.256574605 | E76: 2.003377807 | F76: 2.003377807
A77: 0.72 | B77: =IF(Control!D$7<1,A77,A77*10) -> 7.2 | C77: 0.8540629706 | D77: 1.241773137 | E77: 1.979768504 | F77: 1.979768504
A78: 0.73 | B78: =IF(Control!D$7<1,A78,A78*10) -> 7.3 | C78: 0.8441209381 | D78: 1.227346602 | E78: 1.956757372 | F78: 1.956757372
A79: 0.74 | B79: =IF(Control!D$7<1,A79,A79*10) -> 7.4 | C79: 0.8344275642 | D79: 1.213280559 | E79: 1.934321367 | F79: 1.934321367
A80: 0.75 | B80: =IF(Control!D$7<1,A80,A80*10) -> 7.5 | C80: 0.8249733939 | D80: 1.199561308 | E80: 1.912438632 | F80: =E80 -> 1.912438632
A81: =A80+0.01 -> 0.76 | B81: =IF(Control!D$7<1,A81,A81*10) -> 7.6 | C81: 0.8157494514 | D81: 1.186175846 | E81: 1.891088415 | F81: 1.891088415
A82: 0.77 | B82: =IF(Control!D$7<1,A82,A82*10) -> 7.7 | C82: 0.8067472102 | D82: 1.173111816 | E82: 1.870251003 | F82: 1.870251003
A83: 0.78 | B83: =IF(Control!D$7<1,A83,A83*10) -> 7.8 | C83: 0.797958565 | D83: 1.160357475 | E83: 1.849907655 | F83: 1.849907655
A84: 0.79 | B84: =IF(Control!D$7<1,A84,A84*10) -> 7.9 | C84: 0.7893758055 | D84: 1.147901649 | E84: 1.830040547 | F84: 1.830040547
A85: 0.8 | B85: =IF(Control!D$7<1,A85,A85*10) -> 8 | C85: 0.780991593 | D85: 1.135733705 | E85: 1.81063271 | F85: 1.81063271
A86: 0.81 | B86: =IF(Control!D$7<1,A86,A86*10) -> 8.1 | C86: 0.7727989376 | D86: 1.123843514 | E86: 1.791667983 | F86: 1.791667983
A87: 0.82 | B87: =IF(Control!D$7<1,A87,A87*10) -> 8.2 | C87: 0.7647911779 | D87: 1.112221423 | E87: 1.773130963 | F87: 1.773130963
A88: 0.83 | B88: =IF(Control!D$7<1,A88,A88*10) -> 8.3 | C88: 0.7569619618 | D88: 1.100858225 | E88: 1.755006963 | F88: 1.755006963
A89: 0.84 | B89: =IF(Control!D$7<1,A89,A89*10) -> 8.4 | C89: 0.7493052283 | D89: 1.089745139 | E89: 1.737281968 | F89: 1.737281968
A90: 0.85 | B90: =IF(Control!D$7<1,A90,A90*10) -> 8.5 | C90: 0.7418151914 | D90: 1.078873778 | E90: 1.7199426 | F90: 1.7199426
A91: 0.86 | B91: =IF(Control!D$7<1,A91,A91*10) -> 8.6 | C91: 0.7344863238 | D91: 1.068236133 | E91: 1.702976079 | F91: 1.702976079
A92: 0.87 | B92: =IF(Control!D$7<1,A92,A92*10) -> 8.7 | C92: 0.7273133435 | D92: 1.057824547 | E92: 1.686370189 | F92: 1.686370189
A93: 0.88 | B93: =IF(Control!D$7<1,A93,A93*10) -> 8.8 | C93: 0.7202911993 | D93: 1.047631701 | E93: 1.670113252 | F93: 1.670113252
A94: 0.89 | B94: =IF(Control!D$7<1,A94,A94*10) -> 8.9 | C94: 0.7134150588 | D94: 1.037650591 | E94: 1.654194091 | F94: 1.654194091
A95: 0.9 | B95: =IF(Control!D$7<1,A95,A95*10) -> 9 | C95: 0.7066802965 | D95: 1.027874513 | E95: 1.638602012 | F95: 1.638602012
A96: 0.91 | B96: =IF(Control!D$7<1,A96,A96*10) -> 9.1 | C96: 0.7000824826 | D96: 1.018297046 | E96: 1.623326771 | F96: 1.623326771
A97: 0.92 | B97: =IF(Control!D$7<1,A97,A97*10) -> 9.2 | C97: 0.6936173728 | D97: 1.008912039 | E97: 1.608358551 | F97: 1.608358551
A98: 0.93 | B98: =IF(Control!D$7<1,A98,A98*10) -> 9.3 | C98: 0.6872808986 | D98: 0.9997135938 | E98: 1.593687945 | F98: 1.593687945
A99: 0.94 | B99: =IF(Control!D$7<1,A99,A99*10) -> 9.4 | C99: 0.6810691582 | D99: 0.9906960559 | E99: 1.57930593 | F99: 1.57930593
A100: 0.95 | B100: =IF(Control!D$7<1,A100,A100*10) -> 9.5 | C100: 0.674978408 | D100: 0.9818539987 | E100: 1.565203848 | F100: 1.565203848
A101: 0.96 | B101: =IF(Control!D$7<1,A101,A101*10) -> 9.6 | C101: 0.6690050548 | D101: 0.9731822136 | E101: 1.551373389 | F101: 1.551373389
A102: 0.97 | B102: =IF(Control!D$7<1,A102,A102*10) -> 9.7 | C102: 0.6631456477 | D102: 0.9646756988 | E102: 1.537806573 | F102: 1.537806573
A103: 0.98 | B103: =IF(Control!D$7<1,A103,A103*10) -> 9.8 | C103: 0.6573968719 | D103: 0.9563296487 | E103: 1.524495733 | F103: 1.524495733
A104: 0.99 | B104: =IF(Control!D$7<1,A104,A104*10) -> 9.9 | C104: 0.6517555412 | D104: 0.948139445 | E104: 1.5114335 | F104: 1.5114335
A105: 1 | B105: =IF(Control!D$7<1,A105,A105*10) -> 10 | C105: 0.6462185922 | D105: 0.940100647 | E105: 1.49861279 | F105: 1.49861279

Sheet Potential Outcome Calculator
A1: One usable password is | B1: AAAABABBAAA>
C2: Outcome Calculator
D5: Height | F5: 2
D7: Mass | F7: 2
D11: Outcome | F11: =IF(Control!D5<data!C9*Control!D7^(data!C10),"Slight",IF(Control!D5<data!D9*Control!D7^(data!D10),"Minor",IF(Control!D5<data!E9*Control!D7^(data!E10),"Major","Fatality"))) -> Slight
